[Event "Titled Tuesday Blitz November 14 Late 2023"]
[White "reevecanada"]
[Black "Jimenez Ruano, Adrian"]
[BlackFideId "22276050"]
[WhiteElo "2645"]
[BlackElo "2374"]
[Result "1-0"]
[Round "1"]
[TimeControl "180+1"]
[Date "2023.11.14"]
[WhiteClock "0:00:23"]
[BlackClock "0:00:05"]
[Board "92"]

1. e4 {[%clk 0:02:53]}  c5 {[%clk 0:02:54]} 2. Nf3 {[%clk 0:02:52]}  d6 {[%clk 0:02:53]} 3. Bb5+ {[%clk 0:02:51]}  Nd7 {[%clk 0:02:53]} 4. d4 {[%clk 0:02:51]}  cxd4 {[%clk 0:02:53]} 5. Nxd4 {[%clk 0:02:51]}  Nf6 {[%clk 0:02:54]} 6. O-O {[%clk 0:02:50]}  g6 {[%clk 0:02:52]} 7. Re1 {[%clk 0:02:49]}  Bg7 {[%clk 0:02:52]} 8. Bf1 {[%clk 0:02:48]}  O-O {[%clk 0:02:52]} 9. c4 {[%clk 0:02:49]}  a6 {[%clk 0:02:49]} 10. Nc3 {[%clk 0:02:50]}  Qc7 {[%clk 0:02:47]} 11. b3 {[%clk 0:02:48]}  b5 {[%clk 0:02:43]} 12. Bb2 {[%clk 0:02:48]}  bxc4 {[%clk 0:02:40]} 13. Bxc4 {[%clk 0:02:47]}  Bb7 {[%clk 0:02:39]} 14. Nd5 {[%clk 0:02:45]}  Nxd5 {[%clk 0:02:14]} 15. exd5 {[%clk 0:02:45]}  Nb6 {[%clk 0:02:07]} 16. Rc1 {[%clk 0:02:43]}  Nxc4 {[%clk 0:02:08]} 17. bxc4 {[%clk 0:02:41]}  Rfe8 {[%clk 0:01:58]} 18. h4 {[%clk 0:02:39]}  Rab8 {[%clk 0:01:58]} 19. h5 {[%clk 0:02:37]}  Qa5 {[%clk 0:01:47]} 20. a3 {[%clk 0:02:13]}  Bxd5 {[%clk 0:01:09]} 21. Nb3 {[%clk 0:01:43]}  Qa4 {[%clk 0:01:09]} 22. Bxg7 {[%clk 0:01:37]}  Qxb3 {[%clk 0:01:09]} 23. Qxd5 {[%clk 0:01:34]}  Kxg7 {[%clk 0:01:08]} 24. h6+ {[%clk 0:01:34]}  Kg8 {[%clk 0:00:54]} 25. Qd4 {[%clk 0:01:34]}  f6 {[%clk 0:00:25]} 26. Qd5+ {[%clk 0:01:33]}  Kf8 {[%clk 0:00:26]} 27. Re6 {[%clk 0:01:26]}  Qb7 {[%clk 0:00:20]} 28. Qd4 {[%clk 0:01:24]}  Qb2 {[%clk 0:00:18]} 29. Qe3 {[%clk 0:01:19]}  Rb3 {[%clk 0:00:14]} 30. Qe1 {[%clk 0:01:19]}  Rxa3 {[%clk 0:00:11]} 31. Rd1 {[%clk 0:01:19]}  a5 {[%clk 0:00:03]} 32. Rdxd6 {[%clk 0:01:18]}  Ra1 {[%clk 0:00:04]} 33. Rd1 {[%clk 0:01:18]}  Rxd1 {[%clk 0:00:04]} 34. Qxd1 {[%clk 0:01:19]}  Qc3 {[%clk 0:00:04]} 35. Qf1 {[%clk 0:00:58]}  a4 {[%clk 0:00:04]} 36. Ra6 {[%clk 0:00:58]}  a3 {[%clk 0:00:04]} 37. Qb1 {[%clk 0:00:50]}  Qb2 {[%clk 0:00:04]} 38. Qxb2 {[%clk 0:00:45]}  axb2 {[%clk 0:00:05]} 39. Rb6 {[%clk 0:00:45]}  Rc8 {[%clk 0:00:06]} 40. Rxb2 {[%clk 0:00:45]}  Rxc4 {[%clk 0:00:06]} 41. Rb8+ {[%clk 0:00:46]}  Kf7 {[%clk 0:00:06]} 42. Rh8 {[%clk 0:00:47]}  Rh4 {[%clk 0:00:05]} 43. Rxh7+ {[%clk 0:00:47]}  Kg8 {[%clk 0:00:03]} 44. Rg7+ {[%clk 0:00:47]}  Kf8 {[%clk 0:00:02]} 45. Rxg6 {[%clk 0:00:45]}  Kf7 {[%clk 0:00:02]} 46. Rg7+ {[%clk 0:00:46]}  Kf8 {[%clk 0:00:03]} 47. Rh7 {[%clk 0:00:46]}  Kg8 {[%clk 0:00:03]} 48. Rxe7 {[%clk 0:00:43]}  Rxh6 {[%clk 0:00:03]} 49. g3 {[%clk 0:00:43]}  Rh5 {[%clk 0:00:03]} 50. Kg2 {[%clk 0:00:42]}  Rd5 {[%clk 0:00:04]} 51. Kf3 {[%clk 0:00:42]}  Kf8 {[%clk 0:00:04]} 52. Ra7 {[%clk 0:00:40]}  Rf5+ {[%clk 0:00:05]} 53. Kg2 {[%clk 0:00:40]}  Rd5 {[%clk 0:00:05]} 54. f3 {[%clk 0:00:40]}  Rd2+ {[%clk 0:00:04]} 55. Kh3 {[%clk 0:00:40]}  Rd3 {[%clk 0:00:05]} 56. Kg4 {[%clk 0:00:40]}  Rd4+ {[%clk 0:00:05]} 57. f4 {[%clk 0:00:35]}  Rd5 {[%clk 0:00:05]} 58. Rb7 {[%clk 0:00:30]}  Kg8 {[%clk 0:00:05]} 59. Kh4 {[%clk 0:00:30]}  Kf8 {[%clk 0:00:06]} 60. g4 {[%clk 0:00:30]}  Kg8 {[%clk 0:00:07]} 61. f5 {[%clk 0:00:31]}  Kf8 {[%clk 0:00:07]} 62. Kh5 {[%clk 0:00:32]}  Rd4 {[%clk 0:00:04]} 63. Kg6 {[%clk 0:00:27]}  Rxg4+ {[%clk 0:00:04]} 64. Kxf6 {[%clk 0:00:28]}  Ke8 {[%clk 0:00:02]} 65. Rb8+ {[%clk 0:00:28]}  Kd7 {[%clk 0:00:02]} 66. Kf7 {[%clk 0:00:29]}  Rh4 {[%clk 0:00:01]} 67. f6 {[%clk 0:00:27]}  Rg4 {[%clk 0:00:01]} 68. Rb2 {[%clk 0:00:26]}  Kd6 {[%clk 0:00:01]} 69. Rd2+ {[%clk 0:00:26]}  Ke5 {[%clk 0:00:01]} 70. Ke7 {[%clk 0:00:25]}  Kf5 {[%clk 0:00:01]} 71. f7 {[%clk 0:00:25]}  Re4+ {[%clk 0:00:01]} 72. Kd6 {[%clk 0:00:25]}  Re6+ {[%clk 0:00:01]} 73. Kd7 {[%clk 0:00:24]}  Rf6 {[%clk 0:00:01]} 74. Rf2+ {[%clk 0:00:23]}  Kg6 {[%clk 0:00:02]} 75. Rxf6+ {[%clk 0:00:23]}  Kxf6 {[%clk 0:00:02]} 76. f8=Q+ {[%clk 0:00:24]}  Kg6 {[%clk 0:00:03]} 77. Ke6 {[%clk 0:00:24]}  Kh7 {[%clk 0:00:04]} 78. Qf3 {[%clk 0:00:22]}  Kg8 {[%clk 0:00:04]} 79. Qg3+ {[%clk 0:00:23]}  Kh8 {[%clk 0:00:05]} 80. Kf7 {[%clk 0:00:23]}  Kh7 {[%clk 0:00:05]} 81. Qh3# {[%clk 0:00:23]} 1-0


[Site "https://www.chess.com"]

[Event "Titled Tuesday Blitz November 14 Late 2023"]
[White "Semenenko, Dmytry"]
[Black "GatoRojo150"]
[WhiteFideId "14118645"]
[WhiteElo "2374"]
[BlackElo "2641"]
[Result "1/2-1/2"]
[Round "1"]
[TimeControl "180+1"]
[Date "2023.11.14"]
[WhiteClock "0:00:04"]
[BlackClock "0:00:14"]
[Board "93"]

1. Nf3 {[%clk 0:02:59]}  d5 {[%clk 0:02:59]} 2. c4 {[%clk 0:02:59]}  dxc4 {[%clk 0:03:00]} 3. e4 {[%clk 0:02:59]}  Be6 {[%clk 0:02:54]} 4. Ng5 {[%clk 0:02:57]}  Qd7 {[%clk 0:02:53]} 5. Nxe6 {[%clk 0:02:53]}  Qxe6 {[%clk 0:02:54]} 6. Qa4+ {[%clk 0:02:47]}  Nc6 {[%clk 0:02:50]} 7. Qxc4 {[%clk 0:02:47]}  Qxc4 {[%clk 0:02:48]} 8. Bxc4 {[%clk 0:02:48]}  Nd4 {[%clk 0:02:45]} 9. Na3 {[%clk 0:02:41]}  e6 {[%clk 0:02:45]} 10. O-O {[%clk 0:02:40]}  Bxa3 {[%clk 0:02:43]} 11. bxa3 {[%clk 0:02:40]}  O-O-O {[%clk 0:02:43]} 12. d3 {[%clk 0:02:36]}  Nf6 {[%clk 0:02:38]} 13. Bb2 {[%clk 0:02:29]}  Kb8 {[%clk 0:02:25]} 14. Rab1 {[%clk 0:02:22]}  b6 {[%clk 0:02:19]} 15. a4 {[%clk 0:02:19]}  a5 {[%clk 0:02:16]} 16. e5 {[%clk 0:02:06]}  Ng4 {[%clk 0:02:11]} 17. Rfe1 {[%clk 0:02:02]}  Nh6 {[%clk 0:02:05]} 18. Re4 {[%clk 0:01:55]}  Nhf5 {[%clk 0:01:58]} 19. g4 {[%clk 0:01:37]}  Nf3+ {[%clk 0:01:56]} 20. Kg2 {[%clk 0:01:35]}  N5h4+ {[%clk 0:01:35]} 21. Kg3 {[%clk 0:01:35]}  g5 {[%clk 0:01:31]} 22. Bc3 {[%clk 0:01:22]}  Ka7 {[%clk 0:01:30]} 23. Bb5 {[%clk 0:01:04]}  Rd5 {[%clk 0:01:03]} 24. d4 {[%clk 0:00:47]}  Rhd8 {[%clk 0:00:29]} 25. Bc6 {[%clk 0:00:47]}  Rxd4 {[%clk 0:00:27]} 26. Bxd4 {[%clk 0:00:47]}  Nxd4 {[%clk 0:00:27]} 27. Bb5 {[%clk 0:00:43]}  c5 {[%clk 0:00:25]} 28. f4 {[%clk 0:00:39]}  h6 {[%clk 0:00:25]} 29. Bf1 {[%clk 0:00:29]}  Ng6 {[%clk 0:00:24]} 30. fxg5 {[%clk 0:00:26]}  hxg5 {[%clk 0:00:25]} 31. Rd1 {[%clk 0:00:23]}  Ne7 {[%clk 0:00:22]} 32. Kf2 {[%clk 0:00:19]}  Nec6 {[%clk 0:00:20]} 33. Bb5 {[%clk 0:00:18]}  Nb4 {[%clk 0:00:20]} 34. a3 {[%clk 0:00:17]}  Nd5 {[%clk 0:00:19]} 35. Rdxd4 {[%clk 0:00:16]}  cxd4 {[%clk 0:00:19]} 36. Rxd4 {[%clk 0:00:16]}  Rh8 {[%clk 0:00:20]} 37. Kg3 {[%clk 0:00:16]}  Nf4 {[%clk 0:00:18]} 38. Bf1 {[%clk 0:00:13]}  Rb8 {[%clk 0:00:16]} 39. Rd7+ {[%clk 0:00:13]}  Rb7 {[%clk 0:00:17]} 40. Rxb7+ {[%clk 0:00:12]}  Kxb7 {[%clk 0:00:18]} 41. h4 {[%clk 0:00:12]}  Ng6 {[%clk 0:00:15]} 42. h5 {[%clk 0:00:10]}  Nxe5 {[%clk 0:00:15]} 43. Bg2+ {[%clk 0:00:11]}  Kc7 {[%clk 0:00:15]} 44. Be4 {[%clk 0:00:11]}  f6 {[%clk 0:00:13]} 45. h6 {[%clk 0:00:10]}  Nf7 {[%clk 0:00:13]} 46. h7 {[%clk 0:00:09]}  Kd6 {[%clk 0:00:14]} 47. Bg6 {[%clk 0:00:10]}  Nh8 {[%clk 0:00:14]} 48. Bd3 {[%clk 0:00:08]}  Ke5 {[%clk 0:00:14]} 49. Kf3 {[%clk 0:00:08]}  f5 {[%clk 0:00:15]} 50. gxf5 {[%clk 0:00:08]}  exf5 {[%clk 0:00:15]} 51. Kg3 {[%clk 0:00:07]}  Kf6 {[%clk 0:00:14]} 52. Kf3 {[%clk 0:00:07]}  Nf7 {[%clk 0:00:14]} 53. Kg3 {[%clk 0:00:06]}  Nh8 {[%clk 0:00:13]} 54. Kf3 {[%clk 0:00:05]}  Kg6 {[%clk 0:00:14]} 55. Kg3 {[%clk 0:00:04]}  Kxh7 {[%clk 0:00:14]} 56. Bxf5+ {[%clk 0:00:04]}  Kh6 {[%clk 0:00:15]} 57. Kg4 {[%clk 0:00:05]}  Ng6 {[%clk 0:00:15]} 58. Bc2 {[%clk 0:00:04]}  Ne5+ {[%clk 0:00:15]} 59. Kf5 {[%clk 0:00:04]}  Nc6 {[%clk 0:00:15]} 60. Ke4 {[%clk 0:00:03]}  Kh5 {[%clk 0:00:15]} 61. Kd5 {[%clk 0:00:03]}  Ne7+ {[%clk 0:00:15]} 62. Kd6 {[%clk 0:00:04]}  Ng6 {[%clk 0:00:14]} 63. Kc6 {[%clk 0:00:04]}  Ne5+ {[%clk 0:00:12]} 64. Kxb6 {[%clk 0:00:03]}  Nc4+ {[%clk 0:00:13]} 65. Kc5 {[%clk 0:00:03]}  Nxa3 {[%clk 0:00:13]} 66. Bd1+ {[%clk 0:00:03]}  Kh4 {[%clk 0:00:13]} 67. Kb6 {[%clk 0:00:04]}  Nc4+ {[%clk 0:00:13]} 68. Kb5 {[%clk 0:00:04]}  Nb2 {[%clk 0:00:13]} 69. Be2 {[%clk 0:00:03]}  g4 {[%clk 0:00:14]} 70. Bxg4 {[%clk 0:00:03]}  Kxg4 {[%clk 0:00:14]} 71. Kxa5 {[%clk 0:00:04]}  Nxa4 {[%clk 0:00:14]} 1/2-1/2


[Site "https://www.chess.com"]

[Event "Titled Tuesday Blitz November 14 Late 2023"]
[White "Papasimakopoulos, Alexandros"]
[Black "JonasGallasch"]
[WhiteFideId "4244125"]
[WhiteElo "2640"]
[BlackElo "2369"]
[Result "1-0"]
[Round "1"]
[TimeControl "180+1"]
[Date "2023.11.14"]
[WhiteClock "0:02:17"]
[BlackClock "0:00:54"]
[Board "94"]

1. d4 {[%clk 0:03:00]}  Nf6 {[%clk 0:03:00]} 2. c4 {[%clk 0:02:59]}  g6 {[%clk 0:03:00]} 3. Nc3 {[%clk 0:02:58]}  d5 {[%clk 0:03:00]} 4. Nf3 {[%clk 0:02:57]}  Bg7 {[%clk 0:03:00]} 5. Qb3 {[%clk 0:02:57]}  dxc4 {[%clk 0:02:59]} 6. Qxc4 {[%clk 0:02:58]}  O-O {[%clk 0:02:59]} 7. e4 {[%clk 0:02:57]}  Nc6 {[%clk 0:02:52]} 8. Be2 {[%clk 0:02:57]}  e5 {[%clk 0:02:52]} 9. d5 {[%clk 0:02:56]}  Nd4 {[%clk 0:02:52]} 10. Nxd4 {[%clk 0:02:55]}  exd4 {[%clk 0:02:53]} 11. Qxd4 {[%clk 0:02:56]}  Re8 {[%clk 0:02:54]} 12. Qd3 {[%clk 0:02:55]}  Qe7 {[%clk 0:02:25]} 13. f3 {[%clk 0:02:53]}  c6 {[%clk 0:02:19]} 14. dxc6 {[%clk 0:02:52]}  bxc6 {[%clk 0:02:20]} 15. Be3 {[%clk 0:02:50]}  a5 {[%clk 0:02:18]} 16. O-O {[%clk 0:02:33]}  Ba6 {[%clk 0:02:10]} 17. Qc2 {[%clk 0:02:32]}  Bxe2 {[%clk 0:02:10]} 18. Qxe2 {[%clk 0:02:33]}  Nd7 {[%clk 0:02:10]} 19. Rac1 {[%clk 0:02:31]}  Reb8 {[%clk 0:01:53]} 20. b3 {[%clk 0:02:31]}  Nf8 {[%clk 0:01:34]} 21. Na4 {[%clk 0:02:30]}  Ne6 {[%clk 0:01:24]} 22. Rc4 {[%clk 0:02:25]}  Be5 {[%clk 0:01:14]} 23. f4 {[%clk 0:02:24]}  Bg7 {[%clk 0:01:12]} 24. e5 {[%clk 0:02:21]}  Rb5 {[%clk 0:01:05]} 25. Rxc6 {[%clk 0:02:19]}  Qd7 {[%clk 0:01:02]} 26. Rfc1 {[%clk 0:02:18]}  Rd5 {[%clk 0:00:54]} 27. Nb6 {[%clk 0:02:17]} 1-0


[Site "https://www.chess.com"]

[Event "Titled Tuesday Blitz November 14 Late 2023"]
[White "Wieczorek, Oskar"]
[Black "Fernandez Bustamante, Leancy B."]
[WhiteFideId "1133950"]
[BlackFideId "3523870"]
[WhiteElo "2636"]
[BlackElo "2355"]
[Result "1-0"]
[Round "1"]
[TimeControl "180+1"]
[Date "2023.11.14"]
[WhiteClock "0:01:39"]
[BlackClock "0:00:11"]
[Board "98"]

1. e4 {[%clk 0:02:54]}  c5 {[%clk 0:03:00]} 2. Nf3 {[%clk 0:02:53]}  d6 {[%clk 0:02:49]} 3. d4 {[%clk 0:02:53]}  cxd4 {[%clk 0:02:50]} 4. Nxd4 {[%clk 0:02:53]}  Nf6 {[%clk 0:02:49]} 5. Nc3 {[%clk 0:02:54]}  a6 {[%clk 0:02:50]} 6. h4 {[%clk 0:02:55]}  e5 {[%clk 0:02:47]} 7. Nb3 {[%clk 0:02:55]}  Be6 {[%clk 0:02:45]} 8. f4 {[%clk 0:02:55]}  Bg4 {[%clk 0:02:42]} 9. Be2 {[%clk 0:02:54]}  Bxe2 {[%clk 0:02:39]} 10. Qxe2 {[%clk 0:02:55]}  Nc6 {[%clk 0:02:39]} 11. g4 {[%clk 0:02:52]}  h5 {[%clk 0:02:37]} 12. g5 {[%clk 0:02:51]}  Ng4 {[%clk 0:02:37]} 13. Nd5 {[%clk 0:02:52]}  Be7 {[%clk 0:02:34]} 14. f5 {[%clk 0:02:48]}  a5 {[%clk 0:02:16]} 15. Be3 {[%clk 0:02:34]}  a4 {[%clk 0:01:44]} 16. Nd2 {[%clk 0:02:32]}  Nxe3 {[%clk 0:01:36]} 17. Qxe3 {[%clk 0:02:27]}  Nd4 {[%clk 0:01:36]} 18. O-O-O {[%clk 0:02:27]}  Rc8 {[%clk 0:01:27]} 19. c3 {[%clk 0:02:24]}  a3 {[%clk 0:01:22]} 20. Kb1 {[%clk 0:02:18]}  Nb5 {[%clk 0:01:13]} 21. b3 {[%clk 0:02:18]}  Nc7 {[%clk 0:01:10]} 22. Nc4 {[%clk 0:02:15]}  Nb5 {[%clk 0:01:00]} 23. Rc1 {[%clk 0:02:03]}  Rxc4 {[%clk 0:00:49]} 24. bxc4 {[%clk 0:02:03]}  Nc7 {[%clk 0:00:46]} 25. Rhd1 {[%clk 0:01:59]}  Na6 {[%clk 0:00:44]} 26. Qb6 {[%clk 0:01:56]}  Qxb6+ {[%clk 0:00:42]} 27. Nxb6 {[%clk 0:01:56]}  Nc5 {[%clk 0:00:42]} 28. Re1 {[%clk 0:01:49]}  Bd8 {[%clk 0:00:40]} 29. Nd5 {[%clk 0:01:49]}  Nd3 {[%clk 0:00:28]} 30. Kc2 {[%clk 0:01:50]}  Nxe1+ {[%clk 0:00:27]} 31. Rxe1 {[%clk 0:01:51]}  Ba5 {[%clk 0:00:23]} 32. Rb1 {[%clk 0:01:50]}  b6 {[%clk 0:00:22]} 33. Nxb6 {[%clk 0:01:46]}  Bxb6 {[%clk 0:00:19]} 34. Rxb6 {[%clk 0:01:47]}  O-O {[%clk 0:00:17]} 35. Rxd6 {[%clk 0:01:46]}  Rc8 {[%clk 0:00:17]} 36. Kd3 {[%clk 0:01:41]}  Rb8 {[%clk 0:00:16]} 37. c5 {[%clk 0:01:39]}  Rb2 {[%clk 0:00:14]} 38. c6 {[%clk 0:01:39]}  Rb1 {[%clk 0:00:12]} 39. c7 {[%clk 0:01:38]}  Rd1+ {[%clk 0:00:12]} 40. Kc4 {[%clk 0:01:39]}  Rxd6 {[%clk 0:00:11]} 41. c8=Q+ {[%clk 0:01:39]} 1-0


[Site "https://www.chess.com"]

[Event "Titled Tuesday Blitz November 14 Late 2023"]
[White "Laskakis, Konstantinos"]
[Black "Golubev, Mikhail"]
[WhiteFideId "42134374"]
[BlackFideId "14100983"]
[WhiteElo "2355"]
[BlackElo "2635"]
[Result "1-0"]
[Round "1"]
[TimeControl "180+1"]
[Date "2023.11.14"]
[WhiteClock "0:00:05"]
[BlackClock "0:00:00"]
[Board "99"]

1. d4 {[%clk 0:03:00]}  Nf6 {[%clk 0:02:58]} 2. c4 {[%clk 0:03:01]}  g6 {[%clk 0:02:58]} 3. Nc3 {[%clk 0:03:00]}  Bg7 {[%clk 0:02:58]} 4. Nf3 {[%clk 0:03:00]}  O-O {[%clk 0:02:57]} 5. Bg5 {[%clk 0:03:00]}  d6 {[%clk 0:02:53]} 6. e3 {[%clk 0:03:00]}  c5 {[%clk 0:02:53]} 7. d5 {[%clk 0:02:59]}  e6 {[%clk 0:02:48]} 8. Nd2 {[%clk 0:02:53]}  h6 {[%clk 0:02:45]} 9. Bh4 {[%clk 0:02:52]}  exd5 {[%clk 0:02:43]} 10. cxd5 {[%clk 0:02:52]}  Re8 {[%clk 0:02:41]} 11. Be2 {[%clk 0:02:50]}  Nbd7 {[%clk 0:02:37]} 12. O-O {[%clk 0:02:49]}  a6 {[%clk 0:02:31]} 13. a4 {[%clk 0:02:48]}  Ne5 {[%clk 0:02:17]} 14. Qc2 {[%clk 0:02:33]}  Rb8 {[%clk 0:02:14]} 15. a5 {[%clk 0:02:31]}  b5 {[%clk 0:02:10]} 16. axb6 {[%clk 0:02:26]}  Rxb6 {[%clk 0:01:51]} 17. Bg3 {[%clk 0:01:46]}  Nh5 {[%clk 0:01:30]} 18. Bxe5 {[%clk 0:01:23]}  Bxe5 {[%clk 0:01:27]} 19. Nc4 {[%clk 0:01:23]}  Rb4 {[%clk 0:01:26]} 20. Nxe5 {[%clk 0:01:23]}  Rxe5 {[%clk 0:01:26]} 21. Bxa6 {[%clk 0:01:09]}  Bf5 {[%clk 0:01:24]} 22. Qd2 {[%clk 0:01:01]}  Qb6 {[%clk 0:01:05]} 23. Ra2 {[%clk 0:00:57]}  Re8 {[%clk 0:00:58]} 24. Be2 {[%clk 0:00:54]}  Nf6 {[%clk 0:00:53]} 25. Ra6 {[%clk 0:00:40]}  Qb8 {[%clk 0:00:52]} 26. Ra2 {[%clk 0:00:34]}  Kg7 {[%clk 0:00:44]} 27. f3 {[%clk 0:00:33]}  Bd7 {[%clk 0:00:38]} 28. e4 {[%clk 0:00:32]}  Qb6 {[%clk 0:00:36]} 29. Kh1 {[%clk 0:00:26]}  Rb8 {[%clk 0:00:35]} 30. Rb1 {[%clk 0:00:25]}  g5 {[%clk 0:00:31]} 31. h4 {[%clk 0:00:22]}  gxh4 {[%clk 0:00:28]} 32. Ra6 {[%clk 0:00:22]}  Qd8 {[%clk 0:00:20]} 33. Rxd6 {[%clk 0:00:20]}  Nh5 {[%clk 0:00:16]} 34. Qxh6+ {[%clk 0:00:18]}  Kg8 {[%clk 0:00:12]} 35. Qxh5 {[%clk 0:00:18]}  R4b6 {[%clk 0:00:06]} 36. Qh6 {[%clk 0:00:13]}  Rxd6 {[%clk 0:00:06]} 37. Qxd6 {[%clk 0:00:13]}  Rb6 {[%clk 0:00:06]} 38. Qf4 {[%clk 0:00:12]}  Rg6 {[%clk 0:00:05]} 39. e5 {[%clk 0:00:11]}  Rg3 {[%clk 0:00:04]} 40. Bd3 {[%clk 0:00:09]}  Bh3 {[%clk 0:00:02]} 41. Rg1 {[%clk 0:00:07]}  Bd7 {[%clk 0:00:00]} 42. Qh6 {[%clk 0:00:05]} 1-0


[Site "https://www.chess.com"]

[Event "Titled Tuesday Blitz November 14 Late 2023"]
[White "Adewumi, Tanitoluwa"]
[Black "Lalanne, Pablo"]
[WhiteFideId "30966396"]
[BlackFideId "112151"]
[WhiteElo "2633"]
[BlackElo "2354"]
[Result "1-0"]
[Round "1"]
[TimeControl "180+1"]
[Date "2023.11.14"]
[WhiteClock "0:01:30"]
[BlackClock "0:00:17"]
[Board "100"]

1. e4 {[%clk 0:02:53]}  e5 {[%clk 0:02:58]} 2. Nf3 {[%clk 0:02:53]}  Nc6 {[%clk 0:02:58]} 3. Nc3 {[%clk 0:02:46]}  Nf6 {[%clk 0:02:57]} 4. Bb5 {[%clk 0:02:44]}  d6 {[%clk 0:02:35]} 5. d4 {[%clk 0:02:37]}  exd4 {[%clk 0:02:35]} 6. Nxd4 {[%clk 0:02:36]}  Bd7 {[%clk 0:02:36]} 7. Nxc6 {[%clk 0:02:35]}  bxc6 {[%clk 0:02:35]} 8. Bc4 {[%clk 0:02:35]}  Be7 {[%clk 0:02:33]} 9. O-O {[%clk 0:02:35]}  O-O {[%clk 0:02:33]} 10. Bf4 {[%clk 0:02:34]}  Rb8 {[%clk 0:02:32]} 11. Bb3 {[%clk 0:02:26]}  Re8 {[%clk 0:02:32]} 12. e5 {[%clk 0:02:25]}  dxe5 {[%clk 0:02:02]} 13. Bxe5 {[%clk 0:02:25]}  Be6 {[%clk 0:01:46]} 14. Bxe6 {[%clk 0:02:14]}  fxe6 {[%clk 0:01:45]} 15. Qf3 {[%clk 0:02:12]}  Rxb2 {[%clk 0:01:34]} 16. Rad1 {[%clk 0:02:07]}  Qb8 {[%clk 0:01:23]} 17. Ne4 {[%clk 0:01:51]}  Rxc2 {[%clk 0:01:06]} 18. Bxf6 {[%clk 0:01:45]}  Bxf6 {[%clk 0:00:55]} 19. Nxf6+ {[%clk 0:01:33]}  gxf6 {[%clk 0:00:17]} 20. Rd7 {[%clk 0:01:30]} 1-0


[Site "https://www.chess.com"]

[Event "Titled Tuesday Blitz November 14 Late 2023"]
[White "Skaric, Djuro"]
[Black "Chor, Kevin"]
[WhiteFideId "934569"]
[BlackFideId "2090740"]
[WhiteElo "2352"]
[BlackElo "2630"]
[Result "1-0"]
[Round "1"]
[TimeControl "180+1"]
[Date "2023.11.14"]
[WhiteClock "0:01:44"]
[BlackClock "0:00:21"]
[Board "103"]

1. g3 {[%clk 0:03:00]}  Nf6 {[%clk 0:02:59]} 2. Bg2 {[%clk 0:03:00]}  g6 {[%clk 0:02:59]} 3. h3 {[%clk 0:03:00]}  c5 {[%clk 0:02:58]} 4. d3 {[%clk 0:03:01]}  Bg7 {[%clk 0:02:58]} 5. Nc3 {[%clk 0:03:01]}  d5 {[%clk 0:02:57]} 6. e4 {[%clk 0:02:57]}  d4 {[%clk 0:02:52]} 7. Nce2 {[%clk 0:02:57]}  e5 {[%clk 0:02:52]} 8. f4 {[%clk 0:02:57]}  Nc6 {[%clk 0:02:51]} 9. Nf3 {[%clk 0:02:58]}  O-O {[%clk 0:02:50]} 10. O-O {[%clk 0:02:57]}  Ne8 {[%clk 0:02:45]} 11. g4 {[%clk 0:02:55]}  exf4 {[%clk 0:02:40]} 12. Bxf4 {[%clk 0:02:54]}  b5 {[%clk 0:02:39]} 13. Qd2 {[%clk 0:02:54]}  a5 {[%clk 0:02:33]} 14. Bh6 {[%clk 0:02:54]}  Ba6 {[%clk 0:02:25]} 15. Ng3 {[%clk 0:02:52]}  c4 {[%clk 0:02:19]} 16. Rf2 {[%clk 0:02:52]}  Bxh6 {[%clk 0:02:01]} 17. Qxh6 {[%clk 0:02:51]}  Qf6 {[%clk 0:02:01]} 18. Raf1 {[%clk 0:02:46]}  Qg7 {[%clk 0:02:01]} 19. Qf4 {[%clk 0:02:44]}  cxd3 {[%clk 0:01:50]} 20. cxd3 {[%clk 0:02:43]}  Nb4 {[%clk 0:01:50]} 21. Ne1 {[%clk 0:02:36]}  Rc8 {[%clk 0:01:47]} 22. e5 {[%clk 0:02:33]}  Nc7 {[%clk 0:01:38]} 23. Ne4 {[%clk 0:02:28]}  Ne6 {[%clk 0:01:22]} 24. Nf6+ {[%clk 0:02:28]}  Kh8 {[%clk 0:01:22]} 25. Qe4 {[%clk 0:02:16]}  Rc7 {[%clk 0:01:20]} 26. a3 {[%clk 0:02:13]}  Bb7 {[%clk 0:01:18]} 27. Qe2 {[%clk 0:02:13]}  Bxg2 {[%clk 0:01:12]} 28. Rxg2 {[%clk 0:02:12]}  Nc6 {[%clk 0:01:10]} 29. h4 {[%clk 0:02:12]}  Re7 {[%clk 0:01:06]} 30. Nd5 {[%clk 0:02:09]}  Rd7 {[%clk 0:01:03]} 31. Nf6 {[%clk 0:02:08]}  Re7 {[%clk 0:00:56]} 32. g5 {[%clk 0:02:08]}  Nc5 {[%clk 0:00:47]} 33. Nf3 {[%clk 0:02:08]}  Nd7 {[%clk 0:00:47]} 34. Nxd7 {[%clk 0:02:07]}  Rxd7 {[%clk 0:00:48]} 35. Qe4 {[%clk 0:02:03]}  Rc8 {[%clk 0:00:44]} 36. Rc2 {[%clk 0:02:02]}  Rdc7 {[%clk 0:00:43]} 37. Rfc1 {[%clk 0:02:01]}  f5 {[%clk 0:00:34]} 38. gxf6 {[%clk 0:01:49]}  Qd7 {[%clk 0:00:33]} 39. e6 {[%clk 0:01:49]}  Qd6 {[%clk 0:00:21]} 40. Kg2 {[%clk 0:01:44]} 1-0


[Site "https://www.chess.com"]

[Event "Titled Tuesday Blitz November 14 Late 2023"]
[White "Flameboard08"]
[Black "Weak-Player_EGY"]
[WhiteElo "2628"]
[BlackElo "2352"]
[Result "1-0"]
[Round "1"]
[TimeControl "180+1"]
[Date "2023.11.14"]
[WhiteClock "0:01:54"]
[BlackClock "0:01:47"]
[Board "104"]

1. f4 {[%clk 0:02:56]}  d5 {[%clk 0:02:59]} 2. Nf3 {[%clk 0:02:56]}  Bf5 {[%clk 0:02:59]} 3. d3 {[%clk 0:02:56]}  c6 {[%clk 0:03:00]} 4. Nbd2 {[%clk 0:02:56]}  Nf6 {[%clk 0:03:00]} 5. g3 {[%clk 0:02:57]}  Nbd7 {[%clk 0:03:00]} 6. Bg2 {[%clk 0:02:57]}  h6 {[%clk 0:03:00]} 7. c3 {[%clk 0:02:55]}  e6 {[%clk 0:03:00]} 8. O-O {[%clk 0:02:55]}  Bc5+ {[%clk 0:02:57]} 9. d4 {[%clk 0:02:53]}  Be7 {[%clk 0:02:56]} 10. Ne5 {[%clk 0:02:53]}  O-O {[%clk 0:02:56]} 11. h3 {[%clk 0:02:49]}  Ne4 {[%clk 0:02:44]} 12. Nxe4 {[%clk 0:02:43]}  Bxe4 {[%clk 0:02:41]} 13. Bxe4 {[%clk 0:02:43]}  dxe4 {[%clk 0:02:42]} 14. e3 {[%clk 0:02:42]}  f5 {[%clk 0:02:40]} 15. Qb3 {[%clk 0:02:41]}  Nxe5 {[%clk 0:02:38]} 16. fxe5 {[%clk 0:02:40]}  Qd7 {[%clk 0:02:37]} 17. Bd2 {[%clk 0:02:38]}  Kh7 {[%clk 0:02:37]} 18. Qc2 {[%clk 0:02:31]}  g5 {[%clk 0:02:34]} 19. Kh2 {[%clk 0:02:30]}  c5 {[%clk 0:02:31]} 20. Rf2 {[%clk 0:02:18]}  Rac8 {[%clk 0:02:25]} 21. Qb3 {[%clk 0:02:13]}  f4 {[%clk 0:02:02]} 22. exf4 {[%clk 0:02:04]}  cxd4 {[%clk 0:02:01]} 23. cxd4 {[%clk 0:02:02]}  gxf4 {[%clk 0:01:55]} 24. gxf4 {[%clk 0:01:59]}  Bh4 {[%clk 0:01:54]} 25. Rg2 {[%clk 0:01:56]}  Qxd4 {[%clk 0:01:47]} 26. Qxb7+ {[%clk 0:01:54]} 1-0


[Site "https://www.chess.com"]